Cogmind - Beta 14 @@@ ROGUE MODE // 2025.01.15 @ 18:45:49 Player: Xight Result: Destroyed by S-27 Virus with Autogun Performance ------------- Evolutions (3) 1500 Regions Visited (6) 1200 Robots Destroyed (42) 210 Value Destroyed (1433) 1433 Prototype IDs (0) 0 Alien Tech Used (0) 0 Bonus (0) 0 TOTAL SCORE: 4343 Bonus ------- None Cogmind --------- Core Integrity 0/700 Matter 300/300 Energy 100/100 System Corruption 0% Temperature Cool (0) Movement Treading (160) Location -7/Lower Caves Parts ------- > --- POWER (2) -------- (None) > --- PROPULSION (4) --- Improved Treads > --- UTILITY (5) ------ Medium Storage Unit Advanced Terrain Scan Processor > --- WEAPON (2) ------- Spear > --- INVENTORY (10) --- (None) Peak State ------------ > --- POWER ------------ Improved Deuterium Engine Micro Nuclear Core > --- PROPULSION ------- Aluminum Leg Carbon-fiber Leg Carbon-fiber Leg Titanium Leg > --- UTILITY ---------- Improved Heat Sink Medium Storage Unit Improved Sensor Array Seismic Detector Improved Medium Armor Plating > --- WEAPON ----------- Particle Gun Gauss Rifle > --- INVENTORY -------- Nuclear Core Nuclear Core Light Nuclear Core Improved Treads Medium Treads Advanced Terrain Scan Processor Heavy EM Pulse Gun Particle Gun Light EM Pulse Cannon Advanced Assault Cannon [Rating: 38] Favorites ----------- Power Improved Deuterium Engine Engine Improved Deuterium Engine Power Core Light Nuclear Core Propulsion Aluminum Leg Treads Improved Treads Leg Aluminum Leg Utility Seismic Detector Device Seismic Detector Storage Medium Storage Unit Processor Advanced Terrain Scan Processor Protection Improved Medium Armor Plating Weapon Particle Gun Energy Gun Particle Gun Energy Cannon Beam Cannon Ballistic Gun Gauss Rifle Ballistic Cannon Advanced Assault Cannon Piercing Weapon Spear Build | -11 -10 -10 -9 -8 -7 -7 ------- Run | Yrd Mat Min Mat Mat Fac Low Slots Evolved 6 | . . . 2 2 2 . Power 1 | . . . . . 1 . Propulsion 2 | . . . 2 . . . Utility 3 | . . . . 2 1 . Weapon . | . . . . . . . Parts Attached 54 | 7 1 1 5 15 12 13 Power 11 | 1 . . 1 3 3 3 Engine 4 | 1 . . 1 1 1 . Core 7 | . . . . 2 2 3 Reactor . | . . . . . . . Propulsion 20 | 2 . . 4 7 4 3 Treads 3 | . . . . . . 3 Leg 17 | 2 . . 4 7 4 . Wheel . | . . . . . . . Hover . | . . . . . . . Flight . | . . . . . . . Utility 9 | 2 . . . 3 3 1 Device 4 | 1 . . . 2 1 . Storage 2 | 1 . . . 1 . . Processor 1 | . . . . . . 1 Hackware . | . . . . . . . Protection 2 | . . . . . 2 . Artifact . | . . . . . . . Weapon 14 | 2 1 1 . 2 2 6 Energy Gun 6 | 2 . . . . 1 3 Energy Cannon 2 | . . 1 . . . 1 Ballistic Gun 4 | . 1 . . 2 1 . Ballistic Cannon 1 | . . . . . . 1 Launcher . | . . . . . . . Special Weapon . | . . . . . . . Impact Weapon . | . . . . . . . Slashing Weapon . | . . . . . . . Piercing Weapon 1 | . . . . . . 1 Special Melee Weapon . | . . . . . . . Unidentified Prototypes . | . . . . . . . Parts Lost 25 | . . . . 4 . 21 Power 6 | . . . . 1 . 5 Propulsion 6 | . . . . . . 6 Utility 5 | . . . . 1 . 4 Weapon 8 | . . . . 2 . 6 Highest Loss Streak 18 | . . . . 2 . 18 To Critical Strikes 1 | . . . . . . 1 Average Slot Usage (%) 81 | . 100 100 92 91 82 58 Engine 6 | . 14 14 11 5 6 3 Core 4 | . . . . 3 7 6 Leg 27 | . 28 28 36 35 29 11 Device 15 | . 14 14 11 19 18 8 Storage 8 | . 14 14 11 9 7 7 Protection 1 | . . . . . 3 3 Energy Gun 2 | . 14 . . . 3 3 Energy Cannon 2 | . . 14 11 3 . . Ballistic Gun 8 | . 14 14 11 14 3 3 Peak Build Rating 38 | 7 7 7 10 22 38 38 Average Rating 19 | 5 7 7 8 15 28 23 On Entrance 12 | . 7 7 7 10 16 38 Naked Turns . | . . . . . . . Heaviest Build 43 | 14 14 15 15 25 43 43 Greatest Support 57 | 20 20 20 40 50 57 57 Greatest Overweight (x) 5 | 1 . . . . 1 5 Average Overweight (x) . | . . . . . . . Largest Inventory Capacity 10 | 8 8 8 8 10 10 10 Average Capacity 9 | 7 8 8 8 8 10 10 Most Carried 10 | 4 7 8 8 10 10 10 Average Carried 7 | 2 5 7 7 8 9 5 Final Capacity 10 | 8 8 8 8 10 10 10 Final Carried 10 | 4 7 8 8 10 10 . Class Distribution -------------------- 70% | Scavenger-Mutant 29% | Mutant Dominant Class ---------------- Mutant | -10/Materials Mutant | -10/Mines Scavenger-Mutant | -9/Materials Scavenger-Mutant | -8/Materials Scavenger-Mutant | -7/Factory Mutant | -7/Lower Caves Resources | -11 -10 -10 -9 -8 -7 -7 ----------- Run | Yrd Mat Min Mat Mat Fac Low Matter Collected 1157 | 270 18 11 63 429 172 194 Remotely . | . . . . . . . Salvage Created 1720 | 111 56 . 228 734 245 346 Parts 100 | 6 6 . 15 49 11 13 Haulers Intercepted . | . . . . . . . Recyclers Shooed 6 | 1 . . 1 3 1 . Parts Field Recycled . | . . . . . . . Retrieved Matter . | . . . . . . . Parts Self-Destructed 11 | . . . . . . 11 Prevented 1 | . . . . . . 1 Kills | -11 -10 -10 -9 -8 -7 -7 ------- Run | Yrd Mat Min Mat Mat Fac Low Combat Hostiles Destroyed 35 | . 3 . 5 15 3 9 Melee 2 | . . . . . . 2 Guns 25 | . 3 . . 14 3 5 Cannons 7 | . . . 4 1 . 2 Classes Destroyed 9 | 2 1 . 2 2 2 . Worker 1 | . . . . 1 . . Tunneler 2 | 1 . . . . 1 . Recycler 3 | 1 . . . 1 1 . Watcher 1 | . . . . 1 . . Swarmer 9 | . 3 . . 3 . 3 Grunt 17 | . . . 4 9 . 4 Sentry 6 | . . . 1 3 1 1 Hunter 2 | . . . . . 1 1 Programmer 1 | . . . . . 1 . Best Kill Streak 4 | 2 3 . 3 4 4 3 Combat Bots Only 4 | . 3 . 3 4 2 3 Max Kills in Single Turn 2 | 1 2 . 1 1 2 1 Gunslinging 1 | . 1 . . . . . Exploded . | . . . . . . . Melee 1 | . . . . . . 1 Uniques/NPCs Destroyed . | . . . . . . . Combat | -11 -10 -10 -9 -8 -7 -7 -------- Run | Yrd Mat Min Mat Mat Fac Low Hostile Shots Fired 351 | . 11 . 13 83 27 217 Missed 101 | . 4 . 2 25 13 57 Damage Taken 4057 | . 61 . 146 872 183 2795 Core 863 | . 23 . 25 106 20 689 Absorbed by Shields . | . . . . . . . Core Remaining (%) 90 | 100 . 90 93 80 . . Volleys Fired 135 | 4 9 . 13 53 13 43 Largest 2 | 2 2 . 2 2 2 2 Hottest 93 | 80 60 . 80 83 93 93 Shots Fired 260 | 8 18 . 26 103 26 79 Gun 224 | 8 18 . 13 91 26 68 Cannon 36 | . . . 13 12 . 11 Launcher . | . . . . . . . Special . | . . . . . . . Kinetic 166 | . 9 . 13 91 13 40 Thermal 74 | 4 . . 13 12 13 32 Explosive . | . . . . . . . Electromagnetic 20 | 4 9 . . . . 7 Robot Hit Streak 13 | 1 3 . 6 11 4 13 Robot Miss Streak 9 | 3 9 . 4 4 2 3 Penetration Max 1 | . . . . . 1 1 Secondary Targets 4 | . 1 . . 2 1 . Max Gunslinging Chain 1 | . 1 . . 1 1 . Shots Hit Robots 168 | 3 6 . 13 80 13 53 Core Hits 83 | 3 3 . 8 44 8 17 Critical Kills 2 | . . . 1 . 1 . Critical Parts Destroyed . | . . . . . . . Critical Strikes 6 | . . . 1 . 2 3 Burn 2 | . . . . . 1 1 Meltdown 1 | . . . 1 . . . Destroy 1 | . . . . . 1 . Impale 2 | . . . . . . 2 Melee Attacks 8 | . . . . . . 8 Impact . | . . . . . . . Slashing . | . . . . . . . Piercing 8 | . . . . . . 8 Sneak Attacks . | . . . . . . . Combat Hostiles . | . . . . . . . Follow-up Attacks . | . . . . . . . Damage Inflicted 3067 | 37 56 . 194 1356 295 1129 Guns 2287 | 37 56 . 32 1168 295 699 Cannons 588 | . . . 158 177 . 253 Explosions . | . . . . . . . Melee 173 | . . . . . . 173 Ramming 19 | . . . 4 11 . 4 Kinetic 1929 | . 33 . 32 1168 185 511 Thermal 791 | 24 . . 158 177 110 322 Explosive . | . . . . . . . Electromagnetic 155 | 13 23 . . . . 119 Impact . | . . . . . . . Slashing . | . . . . . . . Piercing 173 | . . . . . . 173 Highest Corruption . | . . . . . . . Average Corruption . | . . . . . . . Corruption Purged . | . . . . . . . Corruption Blocked . | . . . . . . . Overload Shots . | . . . . . . . Overflow Damage . | . . . . . . . Projectiles . | . . . . . . . Explosions . | . . . . . . . Melee . | . . . . . . . Knockbacks 2 | . . . . . . 2 Impact . | . . . . . . . Kinetic 2 | . . . . . . 2 Secondary . | . . . . . . . Self-Inflicted Damage . | . . . . . . . Shots . | . . . . . . . Rammed 12 | . . . . . . 12 Targets Rammed 15 | . . . 1 2 . 12 Kicked 3 | . . . 1 2 . . Crushed . | . . . . . . . Highest Temperature 126 | 54 40 . 126 93 66 107 Average Temperature 34 | 25 19 . 39 29 36 42 Received Heat Transfer 1632 | . . . 78 513 6 1035 Siege Activations . | . . . . . . . Robots Corrupted . | . . . . . . . Combat Hostiles . | . . . . . . . Parts Fried . | . . . . . . . Impact Corruptions . | . . . . . . . Robots Melted 1 | . . . 1 . . . Combat Hostiles 1 | . . . 1 . . . Parts Melted 7 | . . . 3 . 3 1 Heat Transferred 1937 | 50 . . 333 370 296 888 Parts Sabotaged . | . . . . . . . Parts Stolen . | . . . . . . . Parts Stripped . | . . . . . . . Power Chain Reactions . | . . . . . . . Alert | -11 -10 -10 -9 -8 -7 -7 ------- Run | Yrd Mat Min Mat Mat Fac Low Peak Influence 317 | 10 106 40 110 317 86 . Initial 71 | . 6 40 15 46 71 . Average 79 | 4 30 40 58 136 52 . Maximum Alert Level 1 | . . . . 1 . . Low Security (%) 94 | 100 100 100 100 84 100 . Level 1 5 | . . . . 15 . . Level 2 . | . . . . . . . Level 3 . | . . . . . . . Level 4 . | . . . . . . . Level 5 . | . . . . . . . High Security . | . . . . . . . Max Security . | . . . . . . . Squads Dispatched 6 | . . . 1 3 2 . Investigation . | . . . . . . . Extermination 1 | . . . . . 1 . Reinforcement 5 | . . . 1 3 1 . Assault . | . . . . . . . Garrison . | . . . . . . . Intercept . | . . . . . . . Searches Triggered . | . . . . . . . Construction Impeded . | . . . . . . . Haulers Reinforced . | . . . . . . . Active Scanning Responses . | . . . . . . . Cargo Convoy Interrupts . | . . . . . . . Stealth | -11 -10 -10 -9 -8 -7 -7 --------- Run | Yrd Mat Min Mat Mat Fac Low Distress Signals 2 | . . . 2 . . . Communications Jammed . | . . . . . . . Distress Signals . | . . . . . . . Times Spotted 62 | . 7 . 8 27 4 16 Peak Tracking Total 6 | . 3 . 3 5 2 6 Tactical Retreats 9 | . . . 1 2 1 5 Traps | -11 -10 -10 -9 -8 -7 -7 ------- Run | Yrd Mat Min Mat Mat Fac Low Traps Triggered 2 | . . . . 1 1 . Indirectly . | . . . . . . . Trap Hack Attempts . | . . . . . . . Triggered . | . . . . . . . Disarmed . | . . . . . . . Reprogrammed . | . . . . . . . Reused . | . . . . . . . Traps Extracted . | . . . . . . . Installed . | . . . . . . . Triggered 1 | . . . . . . 1 Machines | -11 -10 -10 -9 -8 -7 -7 ---------- Run | Yrd Mat Min Mat Mat Fac Low Machines Disabled . | . . . . . . . Max in Single Turn . | . . . . . . . Machines Repaired . | . . . . . . . Machines Dismantled . | . . . . . . . Machines Sabotaged . | . . . . . . . Overloaded Fab Kills . | . . . . . . . Hacking | -11 -10 -10 -9 -8 -7 -7 --------- Run | Yrd Mat Min Mat Mat Fac Low Machines Accessed 11 | . 2 . 2 2 4 1 Terminals 11 | . 2 . 2 2 4 1 Fabricators . | . . . . . . . Repair Stations . | . . . . . . . Recycling Units . | . . . . . . . Scanalyzers . | . . . . . . . Garrison Access . | . . . . . . . Total Hacks 25 | . 5 . 4 6 7 3 Successful 9 | . 1 . 2 1 2 3 Failed 16 | . 4 . 2 5 5 . Catastrophic 4 | . . . . 2 2 . Database Lockouts . | . . . . . . . Manual 7 | . 2 . . 5 . . Terminals 25 | . 5 . 4 6 7 3 Fabricators . | . . . . . . . Repair Stations . | . . . . . . . Recycling Units . | . . . . . . . Scanalyzers . | . . . . . . . Garrison Access . | . . . . . . . Terminal Hacks 9 | . 1 . 2 1 2 3 Record 3 | . . . . . . 3 Level Access Points 2 | . . . 1 . 1 . Unreport Threat 1 | . . . 1 . . . Locate Traps 2 | . 1 . . . 1 . Zone Layout 1 | . . . . 1 . . Fabricator Hacks . | . . . . . . . Repair Station Hacks . | . . . . . . . Recycling Unit Hacks . | . . . . . . . Scanalyzer . | . . . . . . . Garrison Access Hacks . | . . . . . . . Unauthorized Hacks . | . . . . . . . Terminals . | . . . . . . . Fabricators . | . . . . . . . Repair Stations . | . . . . . . . Recycling Units . | . . . . . . . Scanalyzers . | . . . . . . . Garrison Access . | . . . . . . . Data Cores Recovered . | . . . . . . . Used . | . . . . . . . Hacking Detections 11 | . 2 . 2 2 4 1 Full Trace Events 1 | . . . . . . 1 Feedback Events . | . . . . . . . Feedback Blocked . | . . . . . . . Robot Schematics Acquired . | . . . . . . . Robots Built . | . . . . . . . Authchips . | . . . . . . . Time . | . . . . . . . Total Robot Build Rating . | . . . . . . . Part Schematics Acquired . | . . . . . . . Parts Built . | . . . . . . . Authchips . | . . . . . . . Time . | . . . . . . . Total Part Build Rating . | . . . . . . . Parts Repaired . | . . . . . . . Time . | . . . . . . . Parts Recycled . | . . . . . . . Recycled Matter . | . . . . . . . Retrieved Matter . | . . . . . . . Retrieved Components . | . . . . . . . Parts Scanalyzed . | . . . . . . . Part Schematics Acquired . | . . . . . . . Parts Damaged . | . . . . . . . Bothacking | -11 -10 -10 -9 -8 -7 -7 ------------ Run | Yrd Mat Min Mat Mat Fac Low Used RIF Installer . | . . . . . . . Robots Hacked . | . . . . . . . Non-combat . | . . . . . . . Combat . | . . . . . . . Robot Hacks Applied . | . . . . . . . Relay Couplers Released . | . . . . . . . Fabnet Peak Effective % . | . . . . . . . Robots Rewired . | . . . . . . . Allies Hacked . | . . . . . . . Hacks Repelled . | . . . . . . . Allies | -11 -10 -10 -9 -8 -7 -7 -------- Run | Yrd Mat Min Mat Mat Fac Low Total Allies . | . . . . . . . Largest Group . | . . . . . . . Highest-Rated Group . | . . . . . . . Highest-Rated Ally . | . . . . . . . Total Orders . | . . . . . . . Ally Attacks . | . . . . . . . Total Damage . | . . . . . . . Kills . | . . . . . . . Allies Corrupted . | . . . . . . . Allies Melted . | . . . . . . . Intel | -11 -10 -10 -9 -8 -7 -7 ------- Run | Yrd Mat Min Mat Mat Fac Low Robot Analysis Total . | . . . . . . . Derelict Logs Recovered 2 | . . . . . . 2 Drone Launches . | . . . . . . . Drone Recoveries . | . . . . . . . Exploration | -11 -10 -10 -9 -8 -7 -7 ------------- Run | Yrd Mat Min Mat Mat Fac Low Turns Passed 3345 | 86 220 117 310 901 870 841 Spaces Moved 1883 | 56 156 93 204 398 626 350 Core 80 | 12 . . . . . 68 Treads 62 | . . . . . . 62 Legs 1741 | 44 156 93 204 398 626 220 Wheels . | . . . . . . . Hover . | . . . . . . . Flight . | . . . . . . . Fastest Speed 50 | 50 120 120 120 120 120 122 Average Speed 128 | 107 120 120 120 120 121 163 Slowest Speed 300 | 190 120 120 120 120 190 300 Overloaded Moves . | . . . . . . . Propulsion Burnouts . | . . . . . . . Robots Hopped . | . . . . . . . Cave-ins Triggered . | . . . . . . . Exploration Rate (%) 27 | 5 33 31 22 39 16 43 Regions Visited 6 Branch Regions 2 Pre-discovered Areas . | . . . . . . . Known Exits Taken 1 | . . . 1 . . . Unknown Exits Taken 5 | 1 1 1 . 1 1 . Scrap Searched 2 | . . 1 . . . 1 Spaces Dug . | . . . . . . . Terrain Destroyed 1 | . . . . . . 1 Melee . | . . . . . . . Projectile . | . . . . . . . AOE . | . . . . . . . Terrain Rammed . | . . . . . . . Walls Destroyed . | . . . . . . . Machines Disabled . | . . . . . . . Actions | -11 -10 -10 -9 -8 -7 -7 --------- Run | Yrd Mat Min Mat Mat Fac Low Total 2535 | 70 172 98 248 726 713 508 Wait 395 | . 4 4 19 237 51 80 Move 1877 | 55 155 92 203 397 625 350 Hop . | . . . . . . . Pick Up 26 | 4 3 1 2 9 6 1 Fast Attach 18 | 7 . . 2 1 6 2 Attach 17 | . . . . 4 3 10 Detach . | . . . . . . . Swap 19 | . 1 1 3 10 3 1 Drop 25 | . . . 5 13 6 1 Fire 135 | 4 9 . 13 53 13 43 Melee 8 | . . . . . . 8 Ram 9 | . . . . . . 9 Kick 3 | . . . 1 2 . . Crush 3 | . . . . . . 3 Escape Stasis . | . . . . . . . Rewire . | . . . . . . . Trap . | . . . . . . . Miscellaneous . | . . . . . . . Route ------- -11/Scrapyard -10/Materials -10/Mines -9/Materials (discovered 3 exits: *Mat x3) -8/Materials -7/Factory (discovered 5 exits: Fac x4 / *Low) -7/Lower Caves History --------- Turn | Location | Event 10 | -11/Scrapyard | Discovered new exit (range 16) 87 | -11/Scrapyard | Entered Materials 286 | -10/Materials | Discovered new exit (range 16) 307 | -10/Materials | Entered Mines 328 | -10/Mines | Build established: Mutant 400 | -10/Mines | Discovered new exit (range 14) 424 | -10/Mines | Entered Materials 424 | -9/Materials | Evolved 2 slots: Propulsion x2 478 | -9/Materials | Identified exit to Materials 734 | -9/Materials | Entered another Materials area 734 | -8/Materials | Evolved 2 slots: Utility x2 864 | -8/Materials | Build established: Scavenger-Mutant 1604 | -8/Materials | Discovered new exit (range 18) 1635 | -8/Materials | Entered Factory 1635 | -7/Factory | Evolved 2 slots: Power x1, Utility x1 2406 | -7/Factory | Identified exit to Factory 2437 | -7/Factory | Discovered new exit (range 15) 2505 | -7/Factory | Entered Lower Caves 2693 | -7/Lower Caves | Learned Factory trap positions 2853 | -7/Lower Caves | Learned location of 1 exit from Factory 2907 | -7/Lower Caves | Attracted the attention of an 0b10 base 2973 | -7/Lower Caves | Core integrity fell below 50% 3007 | -7/Lower Caves | Core integrity fell below 20% 3030 | -7/Lower Caves | Lost 18 parts (4p5n3u6w) 3050 | -7/Lower Caves | Learned location of 1 exit from Proximity Caves 3050 | -7/Lower Caves | Learned Factory security intel 3050 | -7/Lower Caves | Learned Factory garrison access intel 3211 | -7/Lower Caves | Build established: Mutant 3346 | -7/Lower Caves | Destroyed by S-27 Virus with Autogun Last Messages --------------- 03018_ Slug penetrates G-47 Trooper. 03020_ Acquired 10 matter. 03020_ Y-64 Sentinel destroyed. 03029_ Corrupted Adv. Heat Sink self-destruct mechanism malfunctions. 03050_ Connecting with Outpost Terminal... 03050_ Current location identified: Lower Caves >>Query(Status Report 860X) INTERCEPTED DERELICT INTEL. Data stored: Proximity Caves exits (x1). >>Query(Status Report 458X) INTERCEPTED DERELICT INTEL. Data stored: Factory security intel. >>Query(Status Report 588X) INTERCEPTED DERELICT INTEL. Data stored: Factory garrison access intel. 03244_ Acquired Imp. Treads. 03245_ Acquired 10 matter. 03340_ Lgt. Nuclear Core destroyed. 03341_ S-27 Virus suffers critical hit (Impale). 03341_ S-27 Virus destroyed. Map ----- +----------------------------------------------------+ | ???????????## ? %%% %%!#?? | | ???????????# ### %% %% #?? | | ???????????# ?? ????# #########?? | | ???????????# ???????### #????????? | | ???????????# ?????????# #????????? | | ???????????# # ????????## ### #????????# | | ????????????# ##?###### ###?# #???????? | | ???????????## # ### #???# #??????? | | ???????????# #???# #??????? | | ???????????## # # ###### #???# #??????? | | ????????????#??## # ####????#####???# #??????# | | ???????????????# # #####????????????# #????## | | ??????????????## ## ##???????????# #???## | | ????????????### ##??????????# #??## | | ????????????# ##???####### #### | | ???????????# ### # #???# | | ??????????# ??## # #??# ### ### | | ??????????# #????## ##?????????# #?## | | ??????????###??????##### #??????????# #??## | | ???????????????????????# #??????????# #???# | | ???????????????????????# #??????????# X???## | | ???????????????????????# #??????????#"#????# | | ???????????????????????# #?????????????????# | | ???????????????????????# #?????????????????# | | ???????????????????????# #?????????????????# | | ???????????????????????# @#?????????????????# | | ???????????????????????# %#?????????????????# | | ??????????????????????#s ???????????????# # | | ?????????????????????# ????????????#/ ## | | ????????????????????# ????????? #### | | ????????????????????# ???? ######?## | | ????????????????????# ?? ???????### | | ????????????????????## ### ??????????# %% | | ?????????????????????##???##### ????????# % | | ???????????????????????????????# ?????# % # | | ????????????????????????????????## ??????# ### | | ??????????????????????????????????? ??????# ??? | | ??????????????????????????????????????????## ???? | | ???????????????????????????????????????????# ???? | | ???????????????????????????????????????????# ????? | | ???????????????????????????????????????????##????? | | ?????????????????????????????????????????????????? | | ?????????????????????????????????????????????????? | | ?????????????????????????????????????????????????? | | ?????????????????????????????????????????????????? | | ?????????????????????????????????????????????????? | | ?????????????????????????????????????????????????? | | ?????????????????????????????????????????????????? | | ?????????????????????????????????????????????????? | | ?????????????????????????????????????????????????? | +----------------------------------------------------+ Best States ------------- Heat Dissipation 48 Energy Generation 26 Energy Capacity 380 Matter Stores 300 Matter Capacity 300 Sight Range 16 Robot Scan Range 15 Terrain Scan Density 210 Armor Coverage 225 Evasion (%) 55 Recoil Reduction 2 Item Schematics ----------------- None Robot Schematics ------------------ None Fabricated ------------ Nothing Alien Tech Used ----------------- None Achievements -------------- None Challenges ------------ None Game ------ Seed PointReflectiveCharge Manual? 0 Play Time 00:29:01 Cumulative 17.7 hours Start 2025.01.15 @ 18:18:44 End 2025.01.15 @ 18:45:49 Sessions 1 Manual Loads 0 Difficulty Rogue Special Mode None Game No. 23 Rogue 13 Adventurer 10 Explorer 0 Win Type - Total 0 Types 0/0/0/0/0/0/0/0/0 Lore% 10 Gallery% 14 Achievement% 17 Wizard Run 0 Options --------- Layout 0 ASCII 0 Keyboard 1 Movement Vi Keybinds 0 Fullscreen 2 Font 36/Smallcaps Map View 76x50 Zoom Use 0% Tactical HUD 1 Map Filters NONE Filters NONE Steam 1 RUN: 37bc4020-fcd1-419e-8912-add84fc5043e